fUST/lending_fUST_20250713
["ID","MTS","AMOUNT","RATE_DAILY","PERIOD"]
[371747392,1752414649267,-460.0,0.00017808,2]
[371747393,1752414649277,-640.34,0.00017808,2]
[371747394,1752414649288,-517.2,0.00017808,2]
[371747395,1752414649299,-460.0,0.00017808,2]
[371747396,1752414649309,-460.0,0.00017808,2]
[371747397,1752414649319,-722.03,0.00017808,2]
[371747398,1752414649329,-1105.55,0.00017808,2]
[371747399,1752414649338,-460.0,0.00017808,2]
[371747400,1752414649348,-460.0,0.00017808,2]
[371747401,1752414649359,-1761.42,0.00017808,2]
[371747402,1752414649368,-492.81464405,0.00017808,2]
[371747403,1752414649377,-460.0,0.00017808,2]
[371747404,1752414649386,-460.0,0.00017808,2]
[371747405,1752414649396,-460.0,0.00017808,2]
[371747406,1752414649405,-573.94,0.00017808,2]
[371747407,1752414649415,-460.0,0.00017808,2]
[371747408,1752414649424,-460.0,0.00017808,2]
[371747409,1752414649433,-460.0,0.00017808,2]
[371747410,1752414649443,-460.0,0.00017808,2]
[371747411,1752414649452,-460.0,0.00017808,2]
[371747412,1752414649462,-1066.1,0.00017808,2]
[371747413,1752414649471,-460.0,0.00017808,2]
[371747414,1752414649481,-281.19887932,0.00017808,2]
[371747415,1752414649490,-460.0,0.00017808,2]
[371747416,1752414649500,-781.97,0.00017808,2]
[371747417,1752414649509,-593.79445313,0.00017808,2]
[371747418,1752414649519,-460.0,0.00017808,2]
[371747419,1752414649529,-460.0,0.00017808,2]
[371747420,1752414649538,-460.0,0.00017808,2]
[371747421,1752414649548,-460.0,0.00017808,2]
[371747422,1752414649557,-460.0,0.00017808,2]
[371747423,1752414649567,-506.63,0.00017808,2]
[371747424,1752414649576,-460.0,0.00017808,2]
[371747425,1752414649586,-2827.39,0.00017808,2]
[371747426,1752414649595,-460.0,0.00017808,2]
[371747427,1752414649605,-570.8,0.00017808,2]
[371747428,1752414649614,-192.7,0.00017808,2]
[371747429,1752414649624,-460.0,0.00017808,2]
[371747430,1752414649633,-460.0,0.00017808,2]
[371747431,1752414649643,-460.0,0.00017808,2]
[371747432,1752414649653,-599.24,0.00017808,2]
[371747433,1752414649662,-701.92,0.00017808,2]
[371747434,1752414649672,-169.310708,0.00017816,2]
[371747435,1752414649682,-266.46663728,0.0001782,2]
[371747436,1752414649692,-260.56377101,0.00017831,2]
[371747437,1752414649701,-373.47812161,0.0001784,2]
[371747438,1752414649710,-2577.86275696,0.00017843,2]
[371747439,1752414649719,-509.02355026,0.00017868,2]
[371747440,1752414649729,-1000.0,0.00017868,2]
[371747441,1752414649738,-502.22361763,0.00017868,2]
[371747442,1752414649748,-1500.0,0.00017868,2]
[371747443,1752414649757,-1500.0,0.00017868,2]
[371747444,1752414649767,-500.0,0.00017868,2]
[371747445,1752414649776,-1000.0,0.00017868,2]
[371747446,1752414649787,-501.71534255,0.00017868,2]
[371747447,1752414649796,-1500.0,0.00017868,2]
[371747448,1752414649806,-1000.0,0.00017868,2]
[371747449,1752414649815,-169.310708,0.00017899,2]
[371747450,1752414649826,-420.0,0.00017963,2]
[371747451,1752414649836,-460.0,0.00017972,2]
[371747452,1752414649845,-995.17,0.00017972,2]
[371747453,1752414649855,-609.7,0.00017972,2]
[371747454,1752414649865,-460.0,0.00017972,2]
[371747455,1752414649874,-1274.01,0.00017972,2]
[371747456,1752414649884,-598.34,0.00017972,2]
[371747457,1752414649893,-460.0,0.00017972,2]
[371747458,1752414649904,-973.85,0.00017972,2]
[371747459,1752414649915,-169.310708,0.00017982,2]
[371747460,1752414649926,-169.310708,0.00018065,2]
[371747461,1752414649935,-1500.0,0.00018068,2]
[371747462,1752414649944,-1500.0,0.00018068,2]
[371747463,1752414649954,-1500.0,0.00018068,2]
[371747464,1752414649964,-521.74967666,0.00018073,2]
[371747465,1752414649973,-161.37660368,0.00018073,2]
[371747466,1752414649982,-314.00247,0.00018082,2]
[371747467,1752414649993,-314.00247,0.00018082,2]
[371747468,1752414650002,-460.0,0.00018082,2]
[371747469,1752414650011,-460.0,0.00018082,2]
[371747470,1752414650021,-460.0,0.00018082,2]
[371747471,1752414650030,-520.01,0.00018082,2]
[371747472,1752414650039,-460.0,0.00018082,2]
[371747473,1752414650050,-513.54,0.00018082,2]
[371747474,1752414650060,-460.0,0.00018082,2]
[371747475,1752414650070,-460.0,0.00018082,2]
[371747476,1752414650080,-460.0,0.00018082,2]
[371747477,1752414650090,-460.0,0.00018082,2]
[371747478,1752414650100,-460.0,0.00018082,2]
[371747479,1752414650109,-460.0,0.00018082,2]
[371747480,1752414650119,-460.0,0.00018082,2]
[371747481,1752414650127,-460.0,0.00018082,2]
[371747482,1752414650137,-460.0,0.00018082,2]
[371747483,1752414650147,-1801.81,0.00018082,2]
[371747484,1752414650156,-2722.19,0.00018082,2]
[371747485,1752414650165,-470.25,0.00018082,2]
[371747486,1752414650175,-460.0,0.00018082,2]
[371747487,1752414650184,-460.0,0.00018082,2]
[371747488,1752414650197,-460.0,0.00018082,2]
[371747489,1752414650206,-460.0,0.00018082,2]
[371747490,1752414650215,-460.0,0.00018082,2]
[371747491,1752414650224,-460.0,0.00018082,2]
[371747492,1752414650234,-639.66,0.00018082,2]
[371747493,1752414650243,-460.0,0.00018082,2]
[371747494,1752414650252,-460.0,0.00018082,2]
[371747495,1752414650262,-640.34,0.00018082,2]
[371747496,1752414650272,-517.2,0.00018082,2]
[371747497,1752414650281,-460.0,0.00018082,2]
[371747498,1752414650290,-460.0,0.00018082,2]
[371747499,1752414650299,-722.03,0.00018082,2]
[371747500,1752414650308,-1105.55,0.00018082,2]
[371747501,1752414650318,-460.0,0.00018082,2]
[371747502,1752414650328,-380.0,0.00018082,2]
[371747503,1752414650337,-1761.42,0.00018082,2]
[371747504,1752414650346,-460.0,0.00018082,2]
[371747505,1752414650356,-460.0,0.00018082,2]
[371747506,1752414650365,-460.0,0.00018082,2]
[371747507,1752414650375,-573.94,0.00018082,2]
[371747508,1752414650384,-460.0,0.00018082,2]
[371747509,1752414650394,-460.0,0.00018082,2]
[371747510,1752414650402,-460.0,0.00018082,2]
[371747511,1752414650411,-460.0,0.00018082,2]
[371747512,1752414650422,-1066.1,0.00018082,2]
[371747513,1752414650431,-460.0,0.00018082,2]
[371747514,1752414650441,-460.0,0.00018082,2]
[371747515,1752414650451,-781.97,0.00018082,2]
[371747516,1752414650460,-460.0,0.00018082,2]
[371747517,1752414650470,-460.0,0.00018082,2]
[371747518,1752414650479,-460.0,0.00018082,2]
[371747519,1752414650491,-460.0,0.00018082,2]
[371747520,1752414650501,-460.0,0.00018082,2]
[371747521,1752414650510,-506.63,0.00018082,2]
[371747522,1752414650521,-460.0,0.00018082,2]
[371747523,1752414650531,-2827.39,0.00018082,2]
[371747524,1752414650540,-460.0,0.00018082,2]
[371747525,1752414650549,-570.8,0.00018082,2]
[371747526,1752414650559,-460.0,0.00018082,2]
[371747527,1752414650568,-460.0,0.00018082,2]
[371747528,1752414650577,-460.0,0.00018082,2]
[371747529,1752414650586,-599.24,0.00018082,2]
[371747530,1752414650595,-701.92,0.00018082,2]
[371747531,1752414650605,-151.0,0.00018114,2]
[371747532,1752414650615,-366.56020996,0.00018114,2]
[371747533,1752414650624,-501.18861077,0.00018114,2]
[371747534,1752414650634,-500.0,0.00018114,2]
[371747535,1752414650643,-500.0,0.00018114,2]
[371747536,1752414650653,-673.82905292,0.00018121,2]
[371747537,1752414650662,-578.16123065,0.00018121,2]
[371747538,1752414650672,-1006.97598134,0.00018121,2]
[371747539,1752414650682,-1000.0,0.00018121,2]
[371747540,1752414650692,-500.0,0.00018121,2]
[371747541,1752414650701,-503.07991612,0.00018121,2]
[371747542,1752414650711,-590.40244496,0.00018121,2]
[371747543,1752414650720,-500.52366226,0.00018121,2]
[371747544,1752414650729,-1000.0,0.00018121,2]
[371747545,1752414650739,-1000.0,0.00018121,2]
[371747546,1752414650748,-1005.46469037,0.00018121,2]
[371747547,1752414650757,-1002.07498449,0.00018121,2]
[371747548,1752414650767,-1000.0,0.00018121,2]
[371747549,1752414650776,-503.94399516,0.00018121,2]
[371747550,1752414650786,-838.53376533,0.00018138,2]
[371747551,1752414650796,-160.0,0.00018138,2]
[371747552,1752414650806,-160.0,0.00018138,2]
[371747553,1752414650815,-160.0,0.00018138,2]
[371747554,1752414650824,-160.0,0.00018138,2]
[371747555,1752414650834,-160.0,0.00018138,2]
[371747556,1752414650843,-160.0,0.00018138,2]
[371747557,1752414650852,-160.0,0.00018138,2]
[371747558,1752414650955,-215.42595214,0.00018138,2]
[371747559,1752414650966,-260.56377101,0.00018141,2]
[371747560,1752414650976,-160.0,0.00018147,2]
[371747561,1752414650986,-214.29528141,0.00018147,2]
[371747562,1752414650996,-169.310708,0.00018147,2]
[371747563,1752414651006,-169.310708,0.0001823,2]
[371747564,1752414651015,-424.74,0.00018233,3]
[371747565,1752414651024,-849.5,0.00018236,3]
[371747566,1752414651034,-460.0,0.00018246,2]
[371747567,1752414651043,-995.17,0.00018246,2]
[371747568,1752414651052,-609.7,0.00018246,2]
[371747569,1752414651062,-460.0,0.00018246,2]
[371747570,1752414651071,-1274.01,0.00018246,2]
[371747571,1752414651081,-598.34,0.00018246,2]
[371747572,1752414651090,-460.0,0.00018246,2]
[371747573,1752414651100,-973.85,0.00018246,2]
[371747574,1752414651109,-169.310708,0.00018313,2]
[371747575,1752414651118,-1699.0,0.00018346,3]
[371747576,1752414651127,-151.0,0.00018356,2]
[371747577,1752414651137,-151.0,0.00018356,2]
[371747578,1752414651146,-460.0,0.00018356,2]
[371747579,1752414651155,-460.0,0.00018356,2]
[371747580,1752414651164,-257.12883024,0.00018356,2]
[371747581,1752414651174,-520.01,0.00018356,2]
[371747582,1752414651183,-460.0,0.00018356,2]
[371747583,1752414651198,-513.54,0.00018356,2]
[371747584,1752414651207,-460.0,0.00018356,2]
[371747585,1752414651217,-237.74216705,0.00018356,2]
[371747586,1752414651226,-460.0,0.00018356,2]
[371747587,1752414651238,-460.0,0.00018356,2]
[371747588,1752414651249,-460.0,0.00018356,2]
[371747589,1752414651258,-460.0,0.00018356,2]
[371747590,1752414651270,-174.32,0.00018356,2]
[371747591,1752414651280,-460.0,0.00018356,2]
[371747592,1752414651289,-514.41046959,0.00018356,2]
[371747593,1752414651299,-1801.81,0.00018356,2]
[371747594,1752414651308,-2722.19,0.00018356,2]
[371747595,1752414651318,-460.0,0.00018356,2]
[371747596,1752414651328,-470.25,0.00018356,2]
[371747597,1752414651338,-460.0,0.00018356,2]
[371747598,1752414651347,-451.22299151,0.00018356,2]
[371747599,1752414651356,-608.36393681,0.00018356,2]
[371747600,1752414651366,-460.0,0.00018356,2]
[371747601,1752414651376,-527.17368822,0.00018356,2]
[371747602,1752414651385,-639.66,0.00018356,2]
[371747603,1752414651395,-460.0,0.00018356,2]
[371747604,1752414651405,-460.0,0.00018356,2]
[371747605,1752414651414,-640.34,0.00018356,2]
[371747606,1752414651424,-460.0,0.00018356,2]
[371747607,1752414651434,-517.2,0.00018356,2]
[371747608,1752414651444,-460.0,0.00018356,2]
[371747609,1752414651454,-722.03,0.00018356,2]
[371747610,1752414651463,-1105.55,0.00018356,2]
[371747611,1752414651474,-460.0,0.00018356,2]
[371747612,1752414651484,-1761.42,0.00018356,2]
[371747613,1752414651493,-460.0,0.00018356,2]
[371747614,1752414651503,-460.0,0.00018356,2]
[371747615,1752414651512,-460.0,0.00018356,2]
[371747616,1752414651522,-151.0,0.00018356,2]
[371747617,1752414651531,-573.94,0.00018356,2]
[371747618,1752414651541,-460.0,0.00018356,2]
[371747619,1752414651551,-460.0,0.00018356,2]
[371747620,1752414651561,-460.0,0.00018356,2]
[371747621,1752414651570,-1066.1,0.00018356,2]
[371747622,1752414651580,-460.0,0.00018356,2]
[371747623,1752414651589,-460.0,0.00018356,2]
[371747624,1752414651598,-781.97,0.00018356,2]
[371747625,1752414651607,-460.0,0.00018356,2]
[371747626,1752414651617,-460.0,0.00018356,2]
[371747627,1752414651626,-460.0,0.00018356,2]
[371747628,1752414651636,-460.0,0.00018356,2]
[371747629,1752414651645,-460.0,0.00018356,2]
[371747630,1752414651654,-506.63,0.00018356,2]
[371747631,1752414651664,-460.0,0.00018356,2]
[371747632,1752414651675,-2827.39,0.00018356,2]
[371747633,1752414651684,-460.0,0.00018356,2]
[371747634,1752414651693,-570.8,0.00018356,2]
[371747635,1752414651703,-460.0,0.00018356,2]
[371747636,1752414651713,-460.0,0.00018356,2]
[371747637,1752414651722,-460.0,0.00018356,2]
[371747638,1752414651731,-599.24,0.00018356,2]
[371747639,1752414651740,-701.92,0.00018356,2]
[371747640,1752414651749,-169.310708,0.00018396,2]
[371747641,1752414651758,-500.0,0.00018406,2]
[371747642,1752414651767,-500.0,0.00018406,2]
[371747643,1752414651777,-311.430858,0.00018406,2]
[371747644,1752414651786,-311.430858,0.00018406,2]
[371747645,1752414651796,-151.0,0.00018406,2]
[371747646,1752414651806,-2000.0,0.00018416,2]
[371747647,1752414651815,-2000.0,0.00018416,2]
[371747648,1752414651825,-315.32243225,0.00018416,2]
[371747649,1752414651835,-260.56377101,0.00018452,2]
[371747650,1752414651844,-169.310708,0.00018479,2]
[371747651,1752414651855,-160.0,0.00018479,2]
[371747652,1752414651864,-460.0,0.0001852,2]
[371747653,1752414651874,-995.17,0.0001852,2]
[371747654,1752414651884,-609.7,0.0001852,2]
[371747655,1752414651894,-1274.01,0.0001852,2]
[371747656,1752414651904,-598.34,0.0001852,2]
[371747657,1752414651914,-460.0,0.0001852,2]
[371747658,1752414651926,-973.85,0.0001852,2]
[371747659,1752414651935,-169.310708,0.00018562,2]
[371747660,1752414651945,-2000.0,0.00018616,2]
[371747661,1752414651954,-740.24514543,0.00018616,2]
[371747662,1752414651964,-976.77120229,0.00018616,2]
[371747663,1752414651974,-460.0,0.0001863,2]
[371747664,1752414651983,-460.0,0.0001863,2]
[371747665,1752414651993,-520.01,0.0001863,2]
[371747666,1752414652003,-460.0,0.0001863,2]
[371747667,1752414652013,-513.54,0.0001863,2]
[371747668,1752414652024,-460.0,0.0001863,2]
[371747669,1752414652033,-151.0,0.0001863,2]
[371747670,1752414652043,-460.0,0.0001863,2]
[371747671,1752414652052,-460.0,0.0001863,2]
[371747672,1752414652061,-460.0,0.0001863,2]
[371747673,1752414652071,-460.0,0.0001863,2]
[371747674,1752414652081,-153.686131,0.0001863,2]
[371747675,1752414652090,-460.0,0.0001863,2]
[371747676,1752414652100,-1801.81,0.0001863,2]
[371747677,1752414652109,-2722.19,0.0001863,2]
[371747678,1752414652119,-460.0,0.0001863,2]
[371747679,1752414652128,-470.25,0.0001863,2]
[371747680,1752414652137,-460.0,0.0001863,2]
[371747681,1752414652146,-460.0,0.0001863,2]
[371747682,1752414652156,-639.66,0.0001863,2]
[371747683,1752414652165,-460.0,0.0001863,2]
[371747684,1752414652177,-460.0,0.0001863,2]
[371747685,1752414652188,-640.34,0.0001863,2]
[371747686,1752414652200,-460.0,0.0001863,2]
[371747687,1752414652210,-517.2,0.0001863,2]
[371747688,1752414652219,-460.0,0.0001863,2]
[371747689,1752414652230,-722.03,0.0001863,2]
[371747690,1752414652240,-1105.55,0.0001863,2]
[371747691,1752414652249,-460.0,0.0001863,2]
[371747692,1752414652259,-1761.42,0.0001863,2]
[371747693,1752414652272,-460.0,0.0001863,2]
[371747694,1752414652282,-460.0,0.0001863,2]
[371747695,1752414652292,-327.71838445,0.0001863,2]
[371747696,1752414652302,-573.94,0.0001863,2]
[371747697,1752414652312,-563.29,0.0001863,2]
[371747698,1752414652322,-460.0,0.0001863,2]
[371747699,1752414652332,-460.0,0.0001863,2]
[371747700,1752414652342,-1066.1,0.0001863,2]
[371747701,1752414652351,-460.0,0.0001863,2]
[371747702,1752414652361,-460.0,0.0001863,2]
[371747703,1752414652370,-781.97,0.0001863,2]
[371747704,1752414652380,-460.0,0.0001863,2]
[371747705,1752414652389,-460.0,0.0001863,2]
[371747706,1752414652399,-460.0,0.0001863,2]
[371747708,1752414652409,-315.9,0.0001863,2]
[371747709,1752414652423,-460.0,0.0001863,2]
[371747710,1752414652433,-506.63,0.0001863,2]
[371747711,1752414652447,-460.0,0.0001863,2]
[371747712,1752414652456,-2827.39,0.0001863,2]
[371747713,1752414652466,-460.0,0.0001863,2]
[371747714,1752414652476,-570.8,0.0001863,2]
[371747715,1752414652485,-460.0,0.0001863,2]
[371747716,1752414652495,-460.0,0.0001863,2]
[371747717,1752414652505,-460.0,0.0001863,2]
[371747718,1752414652516,-599.24,0.0001863,2]
[371747719,1752414652525,-169.310708,0.00018645,2]
[371747720,1752414652535,-500.0,0.00018662,2]
[371747721,1752414652544,-500.0,0.00018662,2]
[371747722,1752414652555,-500.0,0.00018668,2]
[371747723,1752414652565,-1000.0,0.00018668,2]
[371747724,1752414652575,-169.310708,0.00018728,2]
[371747725,1752414652584,-260.56377101,0.00018762,2]
[371747726,1752414652594,-536.8389108,0.00018775,2]
[371747727,1752414652604,-460.0,0.00018794,2]
[371747728,1752414652614,-995.17,0.00018794,2]
[371747729,1752414652623,-609.7,0.00018794,2]
[371747730,1752414652632,-1274.01,0.00018794,2]
[371747731,1752414652642,-598.34,0.00018794,2]
[371747732,1752414652651,-460.0,0.00018794,2]
[371747733,1752414652660,-973.85,0.00018794,2]
[371747734,1752414652675,-900.0,0.000188,4]
[371747735,1752414652684,-2577.86275696,0.00018803,2]
[371747736,1752414652693,-169.310708,0.0001881,2]
[371747737,1752414652703,-186.74614867,0.00018876,2]
[371747738,1752414652712,-169.310708,0.00018893,2]
[371747739,1752414652722,-460.0,0.00018904,2]
[371747740,1752414652731,-460.0,0.00018904,2]
[371747741,1752414652741,-520.01,0.00018904,2]
[371747742,1752414652750,-460.0,0.00018904,2]
[371747743,1752414652759,-513.54,0.00018904,2]
[371747744,1752414652769,-460.0,0.00018904,2]
[371747745,1752414652779,-460.0,0.00018904,2]
[371747746,1752414652790,-460.0,0.00018904,2]
[371747747,1752414652803,-460.0,0.00018904,2]
[371747748,1752414652812,-460.0,0.00018904,2]
[371747749,1752414652823,-460.0,0.00018904,2]
[371747750,1752414652833,-1801.81,0.00018904,2]
[371747751,1752414652842,-2722.19,0.00018904,2]
[371747752,1752414652851,-460.0,0.00018904,2]
[371747753,1752414652861,-470.25,0.00018904,2]
[371747754,1752414652871,-460.0,0.00018904,2]
[371747755,1752414652881,-460.0,0.00018904,2]
[371747756,1752414652891,-639.66,0.00018904,2]
[371747757,1752414652901,-460.0,0.00018904,2]
[371747758,1752414652911,-460.0,0.00018904,2]
[371747759,1752414652926,-640.34,0.00018904,2]
[371747760,1752414652936,-517.2,0.00018904,2]
[371747761,1752414652945,-460.0,0.00018904,2]
[371747762,1752414652955,-722.03,0.00018904,2]
[371747763,1752414652964,-1105.55,0.00018904,2]
[371747764,1752414652974,-460.0,0.00018904,2]
[371747765,1752414652983,-1761.42,0.00018904,2]
[371747766,1752414652993,-257.35,0.00018904,2]
[371747767,1752414653002,-156.31843284,0.00018904,2]
[371747768,1752414653012,-573.94,0.00018904,2]
[371747769,1752414653021,-460.0,0.00018904,2]
[371747770,1752414653030,-253.7,0.00018904,2]
[371747771,1752414653040,-1066.1,0.00018904,2]
[371747772,1752414653049,-460.0,0.00018904,2]
[371747773,1752414653059,-460.0,0.00018904,2]
[371747774,1752414653069,-781.97,0.00018904,2]
[371747775,1752414653078,-460.0,0.00018904,2]
[371747776,1752414653087,-460.0,0.00018904,2]
[371747777,1752414653096,-460.0,0.00018904,2]
[371747778,1752414653202,-460.0,0.00018904,2]
[371747779,1752414653212,-506.63,0.00018904,2]
[371747780,1752414653222,-489.16257468,0.00018904,2]
[371747781,1752414653232,-2827.39,0.00018904,2]
[371747782,1752414653243,-460.0,0.00018904,2]
[371747783,1752414653253,-570.8,0.00018904,2]
[371747784,1752414653263,-460.0,0.00018904,2]
[371747785,1752414653274,-460.0,0.00018904,2]
[371747786,1752414653284,-460.0,0.00018904,2]
[371747787,1752414653295,-599.24,0.00018904,2]
[371747788,1752414653305,-502.3432928,0.00018954,2]
[371747789,1752414653315,-1000.0,0.00018954,2]
[371747790,1752414653326,-2500.0,0.00018964,2]
[371747791,1752414653336,-2500.0,0.00018964,2]
[371747792,1752414653347,-260.0,0.00019027,2]
[371747793,1752414653357,-460.0,0.00019068,2]
[371747794,1752414653366,-995.17,0.00019068,2]
[371747795,1752414653376,-609.7,0.00019068,2]
[371747796,1752414653385,-1274.01,0.00019068,2]
[371747797,1752414653395,-598.34,0.00019068,2]
[371747798,1752414653405,-460.0,0.00019068,2]
[371747799,1752414653423,-151.0,0.00019068,2]
[371747800,1752414653433,-973.85,0.00019068,2]
[371747801,1752414653448,-260.56377101,0.00019072,2]
[371747802,1752414653458,-12151.6035634,0.00019149,2]
[371747803,1752414653468,-510.08387321,0.00019164,2]
[371747804,1752414653477,-460.0,0.00019178,2]
[371747805,1752414653487,-460.0,0.00019178,2]
[371747806,1752414653496,-151.0,0.00019178,2]
[371747807,1752414653506,-520.01,0.00019178,2]
[371747808,1752414653515,-460.0,0.00019178,2]
[371747809,1752414653525,-513.54,0.00019178,2]
[371747810,1752414653536,-151.55,0.00019178,2]
[371747811,1752414653547,-460.0,0.00019178,2]
[371747812,1752414653557,-460.0,0.00019178,2]
[371747813,1752414653567,-460.0,0.00019178,2]
[371747814,1752414653576,-460.0,0.00019178,2]
[371747815,1752414653585,-460.0,0.00019178,2]
[371747816,1752414653595,-460.0,0.00019178,2]
[371747817,1752414653604,-460.0,0.00019178,2]
[371747818,1752414653614,-460.0,0.00019178,2]
[371747819,1752414653623,-460.0,0.00019178,2]
[371747820,1752414653633,-460.0,0.00019178,2]
[371747821,1752414653643,-460.0,0.00019178,2]
[371747822,1752414653652,-460.0,0.00019178,2]
[371747823,1752414653661,-460.0,0.00019178,2]
[371747824,1752414653672,-460.0,0.00019178,2]
[371747825,1752414653682,-1801.81,0.00019178,2]
[371747826,1752414653692,-2722.19,0.00019178,2]
[371747827,1752414653702,-460.0,0.00019178,2]
[371747828,1752414653712,-470.25,0.00019178,2]
[371747829,1752414653721,-460.0,0.00019178,2]
[371747830,1752414653731,-460.0,0.00019178,2]
[371747831,1752414653741,-639.66,0.00019178,2]
[371747832,1752414653751,-460.0,0.00019178,2]
[371747833,1752414653761,-460.0,0.00019178,2]
[371747834,1752414653771,-640.34,0.00019178,2]
[371747835,1752414653781,-517.2,0.00019178,2]
[371747836,1752414653791,-460.0,0.00019178,2]
[371747837,1752414653800,-722.03,0.00019178,2]
[371747838,1752414653810,-1105.55,0.00019178,2]
[371747839,1752414653820,-460.0,0.00019178,2]
[371747840,1752414653830,-1761.42,0.00019178,2]
[371747841,1752414653840,-198.38958192,0.00019178,2]
[371747842,1752414653850,-151.0,0.00019178,2]
[371747843,1752414653860,-573.94,0.00019178,2]
[371747844,1752414653870,-460.0,0.00019178,2]
[371747845,1752414653879,-1066.1,0.00019178,2]
[371747846,1752414653889,-460.0,0.00019178,2]
[371747847,1752414653898,-781.97,0.00019178,2]
[371747848,1752414653907,-460.0,0.00019178,2]
[371747849,1752414653918,-460.0,0.00019178,2]
[371747850,1752414653928,-460.0,0.00019178,2]
[371747851,1752414653937,-460.0,0.00019178,2]
[371747852,1752414653947,-506.63,0.00019178,2]
[371747853,1752414653957,-2827.39,0.00019178,2]
[371747854,1752414653966,-460.0,0.00019178,2]
[371747855,1752414653975,-570.8,0.00019178,2]
[371747856,1752414653985,-460.0,0.00019178,2]
[371747857,1752414653995,-460.0,0.00019178,2]
[371747858,1752414654005,-460.0,0.00019178,2]
[371747859,1752414654015,-599.24,0.00019178,2]
[371747860,1752414654024,-477.993214,0.00019178,2]
[371747861,1752414654034,-666.0,0.00019178,2]
[371747862,1752414654043,-1643.43,0.000192,2]
[371747863,1752414654053,-3199.64,0.000192,2]
[371747864,1752414654063,-151.0,0.000192,2]
[371747865,1752414654072,-840.25,0.000192,2]
[371747866,1752414654082,-500.0,0.00019255,2]
[371747867,1752414654091,-151.0,0.00019329,2]
[371747868,1752414654100,-151.0,0.00019329,2]
[371747869,1752414654109,-314.00247,0.00019329,2]
[371747870,1752414654118,-314.00247,0.00019329,2]
[371747871,1752414654128,-151.0,0.00019329,2]
[371747872,1752414654139,-311.430858,0.00019329,2]
[371747873,1752414654148,-311.430858,0.00019329,2]
[371747874,1752414654157,-151.0,0.00019329,2]
[371747875,1752414654168,-214.956284,0.00019329,2]
[371747876,1752414654179,-100000.0,0.00019329,2]
[371747877,1752414654188,-460.0,0.00019342,2]
[371747878,1752414654200,-995.17,0.00019342,2]
[371747879,1752414654210,-609.7,0.00019342,2]
[371747880,1752414654219,-1274.01,0.00019342,2]
[371747881,1752414654228,-598.34,0.00019342,2]
[371747882,1752414654239,-460.0,0.00019342,2]
[371747883,1752414654249,-973.85,0.00019342,2]
[371747884,1752414654258,-618.04136094,0.00019373,2]
[371747885,1752414654269,-500.7273366,0.00019373,2]
[371747886,1752414654279,-500.0,0.00019373,2]
[371747887,1752414654288,-500.0,0.00019373,2]
[371747888,1752414654297,-500.0,0.00019373,2]
[371747889,1752414654306,-643.63847005,0.00019373,2]
[371747890,1752414654316,-167.7888416,0.00019373,2]
[371747891,1752414654325,-260.56377101,0.00019383,2]
[371747892,1752414654335,-212.92219118,0.00019452,2]